bitfinex/quotes_SOLUSD_20250708
["timestamp","ask_amount","ask_price","bid_price","bid_amount"]
[1751944876186,7.55230765,148.8,148.79,3.4]
[1751944876901,7.55230765,148.8,148.78,74.69370427]
[1751944876902,7.55230765,148.8,148.78,75.17354927]
[1751944877091,26.2,148.82,148.79,2.920155]
[1751944877294,7.55347099,148.81,148.79,2.920155]
[1751944877607,7.55347099,148.8,148.79,2.920155]
[1751944878294,7.55347099,148.8,148.78,75.17354927]
[1751944878602,7.55347099,148.79,148.78,78.09370427]
[1751944878807,29.120155,148.82,148.79,64.22007828]
[1751944880308,26.2,148.82,148.79,64.22007828]
[1751944880613,29.120155,148.82,148.79,64.22007828]
[1751944881003,0.03,148.8,148.79,64.22007828]
[1751944881526,2.950155,148.8,148.79,64.22007828]
[1751944881899,26.0,148.79,148.77,64.22007828]
[1751944882216,2.920155,148.78,148.77,64.22007828]
[1751944882421,26.0,148.79,148.77,64.22007828]
[1751944882592,28.920155,148.79,148.77,64.22007828]
[1751944884294,6.350155,148.8,148.77,64.22007828]
[1751944884906,6.350155,148.8,148.77,70.54023328]
[1751944884907,0.03,148.8,148.77,70.54023328]
[1751944885296,0.03,148.8,148.78,2.920155]
[1751944886621,0.03,148.8,148.78,67.14023328]
[1751944887619,0.03,148.8,148.79,2.920155]
[1751944889899,0.2,148.82,148.8,64.19007828]
[1751944890117,0.2,148.82,148.81,2.920155]
[1751944890421,0.2,148.82,148.81,67.11023328]
[1751944892526,0.2,148.82,148.81,70.51023328]
[1751944892905,0.2,148.82,148.81,72.1473772]
[1751944897201,7.73064954,148.85,148.82,63.99007828]
[1751944897401,7.73064954,148.85,148.82,4.55729892]
[1751944899529,0.2,148.85,148.82,4.55729892]
[1751944900025,0.2,148.85,148.83,4.55729892]
[1751944900232,0.2,148.85,148.84,4.55729892]
[1751944900424,0.2,148.85,148.84,68.5473772]
[1751944902929,0.2,148.86,148.85,63.79007828]
[1751944903226,0.2,148.86,148.85,71.7473772]
[1751944905919,0.2,148.86,148.85,218.5473772]
[1751944906434,0.2,148.86,148.85,225.26554985]
[1751944906610,0.2,148.86,148.85,243.91519871]
[1751944909334,0.2,148.86,148.85,237.19702606]
[1751944912269,4.55729892,148.91,148.88,63.59007828]
[1751944913879,26.0,148.92,148.89,4.55729892]
[1751944917972,26.0,148.92,148.89,68.1473772]
[1751944921792,26.0,148.92,148.89,63.59007828]
[1751944922082,30.55729892,148.92,148.89,63.59007828]
[1751944926901,37.27238685,148.92,148.89,63.59007828]
[1751944927795,32.71508793,148.92,148.89,63.59007828]
[1751944928001,37.27238685,148.92,148.89,63.59007828]
[1751944928498,4.55729892,148.9,148.89,63.59007828]
[1751944929895,6.71552728,148.91,148.89,63.59007828]
[1751944930202,4.55729892,148.9,148.89,63.59007828]
[1751944932289,4.55729892,148.91,148.89,63.59007828]
[1751944932501,12.07830199,148.91,148.89,63.59007828]
[1751944932885,26.0,148.92,148.89,63.59007828]
[1751944935583,1.5245,148.95,148.89,71.5473772]
[1751944935787,26.0,148.93,148.89,71.5473772]
[1751944937182,26.0,148.93,148.89,66.99007828]
[1751944937409,26.0,148.93,148.9,4.55729892]
[1751944937910,26.0,148.93,148.89,71.5473772]
[1751944938089,26.0,148.93,148.9,4.55729892]
[1751944938295,7.53158733,148.92,148.9,4.55729892]
[1751944938503,7.53158733,148.92,148.9,68.1473772]
[1751944938904,7.53158733,148.92,148.9,63.59007828]
[1751944940288,4.55729892,148.92,148.9,63.59007828]
[1751944940490,12.08980185,148.92,148.9,63.59007828]
[1751944941518,7.53250293,148.92,148.9,63.59007828]
[1751944942296,30.55729892,148.93,148.9,63.59007828]
[1751944942497,7.53645438,148.92,148.9,63.59007828]
[1751944944532,26.0,148.93,148.9,63.59007828]
[1751944944701,7.54221388,148.92,148.9,63.59007828]
[1751944945292,26.0,148.93,148.9,63.59007828]
[1751944946306,7.54448893,148.92,148.9,63.59007828]
[1751944946631,37.27190872,148.93,148.9,63.59007828]
[1751944946794,7.54497286,148.92,148.9,63.59007828]
[1751944947001,30.55729892,148.93,148.9,63.59007828]
[1751944947211,7.54481251,148.92,148.9,63.59007828]
[1751944947401,30.55729892,148.93,148.9,63.59007828]
[1751944947701,7.54543524,148.92,148.9,63.59007828]
[1751944948003,30.55729892,148.93,148.9,63.59007828]
[1751944948300,7.5454362,148.92,148.9,63.59007828]
[1751944948502,30.55729892,148.93,148.9,63.59007828]
[1751944948700,7.54521543,148.92,148.9,63.59007828]
[1751944948921,30.55729892,148.93,148.9,63.59007828]
[1751944949112,7.54521543,148.92,148.9,63.59007828]
[1751944949314,30.55729892,148.93,148.9,63.59007828]
[1751944949509,7.54548025,148.92,148.9,63.59007828]
[1751944949822,7.54548025,148.91,148.9,63.59007828]
[1751944950626,7.54548025,148.92,148.9,63.59007828]
[1751944950809,7.54548025,148.91,148.9,63.59007828]
[1751944951011,7.54548025,148.92,148.9,63.59007828]
[1751944951325,7.54548025,148.91,148.9,63.59007828]
[1751944951502,30.55729892,148.93,148.9,63.59007828]
[1751944951699,7.54611229,148.92,148.9,63.59007828]
[1751944951896,30.55729892,148.93,148.9,63.59007828]
[1751944952097,7.5462717,148.92,148.9,63.59007828]
[1751944952298,30.55729892,148.93,148.9,63.59007828]
[1751944952529,7.54600603,148.92,148.9,63.59007828]
[1751944952720,30.55729892,148.93,148.9,63.59007828]
[1751944953020,7.54616834,148.92,148.9,63.59007828]
[1751944953222,30.55729892,148.93,148.9,63.59007828]
[1751944953419,7.54623245,148.92,148.9,63.59007828]
[1751944953623,7.54623245,148.91,148.9,63.59007828]
[1751944953929,7.54623245,148.92,148.9,63.59007828]
[1751944954130,7.54623245,148.91,148.9,63.59007828]
[1751944954626,26.0,148.93,148.9,63.59007828]
[1751944954825,7.54628759,148.92,148.9,63.59007828]
[1751944954996,30.55729892,148.93,148.9,63.59007828]
[1751944955199,7.54628759,148.92,148.9,63.59007828]
[1751944955393,30.55729892,148.93,148.9,63.59007828]
[1751944955647,7.54664344,148.92,148.9,63.59007828]
[1751944955858,30.55729892,148.93,148.9,63.59007828]
[1751944956035,7.54664344,148.92,148.9,63.59007828]
[1751944956235,30.55729892,148.93,148.9,63.59007828]
[1751944956456,7.54709525,148.92,148.9,63.59007828]
[1751944956757,30.55729892,148.93,148.9,63.59007828]
[1751944956958,7.54725864,148.92,148.9,63.59007828]
[1751944957159,26.0,148.93,148.9,63.59007828]
[1751944957450,7.5479067,148.92,148.91,4.55729892]
[1751944957634,7.5479067,148.92,148.91,68.1473772]
[1751944957835,7.5479067,148.94,148.91,68.1473772]
[1751944958064,7.54709291,148.93,148.92,3.4]
[1751944958437,7.54709291,148.96,148.92,3.4]
[1751944958741,7.54694614,148.95,148.92,66.99007828]
[1751944959050,7.54694614,148.94,148.92,63.59007828]
[1751944959364,4.55729892,148.95,148.92,63.59007828]
[1751944959556,7.54615171,148.94,148.92,63.59007828]
[1751944959856,4.55729892,148.95,148.92,63.59007828]
[1751944960061,7.54615171,148.94,148.92,63.59007828]
[1751944960353,4.55729892,148.95,148.92,63.59007828]
[1751944960558,7.54550967,148.94,148.92,63.59007828]
[1751944960729,4.55729892,148.95,148.92,63.59007828]
[1751944960936,7.54550871,148.94,148.92,63.59007828]
[1751944961252,4.55729892,148.95,148.92,63.59007828]
[1751944961454,7.54477952,148.94,148.92,63.59007828]
[1751944961767,4.55729892,148.95,148.92,63.59007828]
[1751944961938,7.54477846,148.94,148.92,63.59007828]
[1751944962135,4.55729892,148.96,148.92,63.59007828]
[1751944962340,7.54416909,148.95,148.92,68.1473772]
[1751944962534,7.54416909,148.94,148.92,68.1473772]
[1751944962742,30.55729892,148.97,148.92,68.1473772]
[1751944962942,7.54406545,148.96,148.92,68.1473772]
[1751944963158,7.54406545,148.95,148.92,68.1473772]
[1751944963487,7.54406545,148.94,148.92,68.1473772]
[1751944963780,4.55729892,148.96,148.92,68.1473772]
[1751944964078,7.54335545,148.95,148.92,68.1473772]
[1751944964281,7.54335545,148.94,148.92,68.1473772]
[1751944964476,4.55729892,148.96,148.92,68.1473772]
[1751944964658,7.54277178,148.95,148.92,68.1473772]
[1751944964859,7.54277178,148.94,148.92,68.1473772]
[1751944965062,26.0,148.97,148.92,68.1473772]
[1751944965264,7.54277082,148.96,148.92,68.1473772]
[1751944965451,7.54277082,148.95,148.92,63.59007828]
[1751944965653,7.54277082,148.94,148.92,68.1473772]
[1751944965851,30.55729892,148.97,148.93,3.4]
[1751944966068,7.54219282,148.96,148.93,3.4]
[1751944966263,7.54219282,148.95,148.93,3.4]
[1751944966461,7.54219282,148.94,148.93,3.4]
[1751944966886,7.54219282,148.96,148.92,71.5473772]
[1751944967066,7.54219282,148.95,148.92,71.5473772]
[1751944967380,30.55729892,148.97,148.92,71.5473772]
[1751944967679,7.54086013,148.96,148.92,71.5473772]
[1751944967862,7.54086013,148.95,148.92,71.5473772]
[1751944968061,30.55729892,148.97,148.92,71.5473772]
[1751944968379,7.54053774,148.96,148.92,71.5473772]
[1751944968571,7.54053774,148.95,148.92,71.5473772]
[1751944968758,28.91227169,148.97,148.92,69.90234997]
[1751944968960,7.53952762,148.96,148.92,69.90234997]
[1751944969176,7.53952762,148.95,148.92,69.90234997]
[1751944969374,28.91227169,148.97,148.92,69.90234997]
[1751944969569,7.53869531,148.96,148.92,69.90234997]
[1751944969868,28.91227169,148.97,148.92,69.90234997]
[1751944970201,7.53869531,148.96,148.92,69.90234997]
[1751944970364,28.91227169,148.97,148.92,69.90234997]
[1751944970676,7.53775857,148.96,148.92,69.90234997]
[1751944970873,28.91227169,148.97,148.92,69.90234997]
[1751944971073,7.5380818,148.96,148.92,69.90234997]
[1751944971273,28.91227169,148.97,148.92,69.90234997]
[1751944971478,7.53705692,148.96,148.92,69.90234997]
[1751944971676,28.91227169,148.97,148.92,69.90234997]
[1751944971862,7.53705692,148.96,148.92,69.90234997]
[1751944972062,0.03,148.96,148.92,69.90234997]
[1751944973372,7.5664903,148.96,148.92,69.90234997]
[1751944974391,0.03,148.96,148.92,69.90234997]
[1751944974588,0.03,148.96,148.92,66.99007828]
[1751944974773,0.03,148.96,148.92,69.90234997]
[1751944976082,0.03,148.96,148.93,2.91227169]
[1751944976267,7.53864861,148.95,148.93,2.91227169]
[1751944976868,0.03,148.96,148.93,2.91227169]
[1751944977183,7.53864659,148.95,148.93,2.91227169]
[1751944978070,0.03,148.96,148.93,66.50234997]
[1751944979664,7.56894145,148.96,148.93,66.50234997]
[1751944982787,0.03,148.96,148.93,66.50234997]
[1751944985176,0.03,148.96,148.94,2.91227169]
[1751944988671,7.56718637,148.96,148.93,66.50234997]
[1751944988870,0.03,148.96,148.93,66.50234997]
[1751944989166,7.56712273,148.96,148.94,2.91227169]
[1751944989373,0.03,148.96,148.94,2.91227169]
[1751944991093,7.56692697,148.96,148.93,66.50234997]
[1751944991393,0.03,148.96,148.93,66.50234997]
[1751944991586,7.56690162,148.96,148.93,66.50234997]
[1751944992396,0.03,148.96,148.93,66.50234997]
[1751944992701,7.56716286,148.96,148.93,66.50234997]
[1751944993279,0.03,148.96,148.93,66.50234997]
[1751944993790,7.53806968,148.95,148.93,63.59007828]
[1751944994291,2.94227169,148.96,148.93,63.59007828]
[1751944994597,7.53904798,148.95,148.93,63.59007828]
[1751944995099,2.94227169,148.96,148.93,63.59007828]
[1751944995795,0.03,148.96,148.93,66.50234997]
[1751944996297,7.54121912,148.95,148.93,66.50234997]
[1751944997203,7.54121912,148.95,148.93,63.59007828]
[1751944997584,2.91227169,148.95,148.92,66.99007828]
[1751944997783,7.54281099,148.94,148.92,63.59007828]
[1751944998093,0.03,148.96,148.92,66.50234997]
[1751944998297,0.03,148.96,148.94,2.91227169]
[1751945003804,0.03,148.96,148.94,66.50234997]
[1751945005600,7.54974122,148.95,148.94,66.50234997]
[1751945005928,7.54974122,148.95,148.94,63.59007828]
[1751945015746,7.54974122,148.95,148.92,66.99007828]
[1751945016038,7.54974122,148.94,148.92,66.99007828]
[1751945016338,0.03,148.95,148.92,66.99007828]
[1751945016339,7.55442704,148.93,148.92,66.99007828]
[1751945016714,7.55442704,148.93,148.92,63.59007828]
[1751945020527,10.46669873,148.93,148.92,63.59007828]
[1751945021940,17.18126261,148.93,148.92,63.59007828]
[1751945022146,14.26899092,148.93,148.88,63.59007828]
[1751945022345,2.91227169,148.89,148.88,63.59007828]
[1751945022519,30.88734136,148.95,148.89,82.23972714]
[1751945022520,7.55442704,148.91,148.89,82.23972714]
[1751945022723,9.45145357,148.95,148.9,6.31227169]
[1751945022929,9.45145357,148.95,148.91,2.91227169]
[1751945022930,7.54508089,148.94,148.91,2.91227169]
[1751945023126,7.54508089,148.93,148.92,3.4]
[1751945023547,26.03,148.95,148.92,3.4]
[1751945023751,7.54424859,148.94,148.92,3.4]
[1751945024738,7.54424859,148.94,148.92,6.31227169]
[1751945025835,7.54424859,148.94,148.93,2.91227169]
[1751945026035,7.54424859,148.94,148.93,66.50234997]
[1751945027334,7.54405913,148.94,148.93,66.50234997]
[1751945027531,0.03,148.95,148.93,238.66656271]
[1751945027760,0.03,148.95,148.94,25.10408212]
[1751945028169,0.03,148.95,148.94,31.81819518]
[1751945029441,0.03,148.95,148.94,24.96192055]
[1751945030863,0.03,148.95,148.94,26.59709128]
[1751945031678,0.03,148.95,148.94,23.19709128]
[1751945031989,0.03,148.95,148.94,26.59709128]
[1751945032752,0.03,148.95,148.94,23.19709128]
[1751945032961,0.03,148.95,148.94,71.5375207]
[1751945033157,0.03,148.95,148.94,66.99007828]
[1751945035180,0.03,148.95,148.94,71.5375207]
[1751945040098,0.03,148.95,148.94,90.18716956]
[1751945041700,0.03,148.96,148.95,86.75716956]
[1751945045202,0.03,148.96,148.95,93.47083186]
[1751945045389,0.03,148.96,148.95,86.75716956]
[1751945046000,0.03,148.96,148.95,93.47083186]
[1751945047887,0.03,148.96,148.95,86.75716956]
[1751945048291,7.72926303,149.0,148.96,63.53007828]
[1751945048508,7.72926303,149.0,148.97,3.4]
[1751945049813,7.72926303,149.0,148.97,7.94744242]
[1751945053916,7.72926303,149.0,148.97,3.4]
[1751945054133,7.72926303,149.0,148.97,71.4775207]
[1751945054630,12.27670545,149.0,148.97,66.93007828]
[1751945054810,10.6399439,149.0,148.97,66.93007828]
[1751945058314,10.6399439,149.0,148.98,3.4]
[1751945058635,7.72926303,149.0,148.98,3.4]
[1751945058836,10.6399439,149.0,148.98,3.4]
[1751945059134,10.6399439,149.0,148.97,66.93007828]
[1751945060319,10.6399439,149.0,148.97,63.53007828]
[1751945060517,10.6399439,149.0,148.97,66.93007828]
[1751945061115,3.11068087,149.0,148.97,66.93007828]
[1751945061907,10.63581065,149.0,148.97,66.93007828]
[1751945067326,3.11068087,149.0,148.97,66.93007828]
[1751945069340,7.54034305,148.99,148.97,66.93007828]
[1751945069520,0.2,149.0,148.97,66.93007828]
[1751945069711,0.2,149.0,148.97,69.84075915]
[1751945070339,0.2,149.0,148.97,66.93007828]
[1751945070531,0.2,149.0,148.97,69.84075915]
[1751945072326,7.5473335,148.99,148.97,69.84075915]
[1751945072514,0.2,149.0,148.97,69.84075915]
[1751945072714,7.54715025,148.99,148.97,69.84075915]
[1751945072930,0.2,149.0,148.97,69.84075915]
[1751945073130,7.54714929,148.99,148.97,69.84075915]
[1751945073332,0.2,149.0,148.97,66.93007828]
[1751945073724,7.54683705,148.99,148.97,66.93007828]
[1751945073950,0.2,149.0,148.97,66.93007828]
[1751945074157,7.54683801,148.99,148.97,66.93007828]
[1751945074334,0.2,149.0,148.97,66.93007828]
[1751945074525,7.54653866,148.99,148.97,66.93007828]
[1751945074727,3.11068087,149.0,148.97,66.93007828]
[1751945074925,7.54670089,148.99,148.97,66.93007828]
[1751945075125,3.11068087,149.0,148.97,66.93007828]
[1751945075334,7.54669992,148.99,148.97,66.93007828]
[1751945075540,3.11068087,149.0,148.97,66.93007828]
[1751945075743,7.54616555,148.99,148.97,66.93007828]
[1751945075956,3.11068087,149.0,148.97,66.93007828]
[1751945076139,7.54616652,148.99,148.97,66.93007828]
[1751945076458,3.11068087,149.0,148.97,66.93007828]
[1751945076658,7.54576363,148.99,148.97,66.93007828]
[1751945076967,3.11068087,149.0,148.97,66.93007828]
[1751945077166,7.54576459,148.99,148.97,66.93007828]
[1751945077337,3.11068087,149.0,148.97,66.93007828]
[1751945077537,7.54563522,148.99,148.97,66.93007828]
[1751945077856,0.2,149.0,148.97,66.93007828]
[1751945078046,7.54563522,148.99,148.97,66.93007828]
[1751945078361,0.2,149.0,148.97,66.93007828]
[1751945078560,7.54654627,148.99,148.97,66.93007828]
[1751945078753,0.2,149.0,148.97,66.93007828]
[1751945078951,7.54654627,148.99,148.97,66.93007828]
[1751945079158,0.2,149.0,148.97,66.93007828]
[1751945079460,7.54654723,148.99,148.97,66.93007828]
[1751945079673,0.2,149.0,148.97,73.64261226]
[1751945079861,7.54766477,148.99,148.97,73.64261226]
[1751945080169,0.2,149.0,148.97,73.64261226]
[1751945080369,7.54766477,148.99,148.97,73.64261226]
[1751945080674,0.2,149.0,148.97,73.64261226]
[1751945080864,7.54816361,148.99,148.97,73.64261226]
[1751945081049,0.2,149.0,148.97,73.64261226]
[1751945083862,0.2,149.0,148.97,220.44261226]
[1751945084366,7.55076443,148.99,148.97,220.44261226]
[1751945084673,0.2,149.0,148.97,220.44261226]
[1751945084886,7.55045389,148.99,148.97,220.44261226]
[1751945085085,0.2,149.0,148.97,220.44261226]
[1751945085255,7.55045389,148.99,148.97,213.73007828]
[1751945085576,0.2,149.0,148.97,213.73007828]
[1751945085881,7.55018546,148.99,148.97,213.73007828]
[1751945086072,0.2,149.0,148.97,213.73007828]
[1751945086375,7.55018546,148.99,148.97,213.73007828]
[1751945086578,0.2,149.0,148.97,213.73007828]
[1751945086771,7.55042829,148.99,148.97,213.73007828]
[1751945086967,0.2,149.0,148.97,213.73007828]
[1751945087357,7.55058185,148.99,148.97,213.73007828]
[1751945087673,0.2,149.0,148.97,213.73007828]
[1751945087875,7.55043823,148.99,148.97,213.73007828]
[1751945088079,0.2,149.0,148.97,213.73007828]
[1751945088262,7.55043919,148.99,148.97,213.73007828]
[1751945088465,0.2,149.0,148.97,213.73007828]
[1751945088658,0.2,149.0,148.99,21.56032973]
[1751945088865,0.2,149.0,148.99,88.49040801]
[1751945095081,0.2,149.0,148.99,66.93007828]
[1751945095082,7.7418068,149.0,148.99,66.93007828]
[1751945095287,0.2,149.0,148.99,66.93007828]
[1751945095461,0.2,149.0,148.99,69.84075915]
[1751945095976,0.2,149.0,148.99,66.93007828]
[1751945098686,7.54039248,149.02,149.0,63.33007828]
[1751945098860,2.91068087,149.03,149.01,3.4]
[1751945099060,26.0,149.05,149.01,63.33007828]
[1751945099255,7.54061144,149.04,149.02,3.4]
[1751945099590,7.54061144,149.03,149.02,3.4]
[1751945104286,7.57061144,149.03,149.02,3.4]
[1751945104465,7.57061144,149.03,149.02,66.73007828]
[1751945107570,0.03,149.03,149.02,66.73007828]
[1751945109787,2.94068087,149.03,149.02,66.73007828]
[1751945109961,0.03,149.03,149.02,66.73007828]
[1751945110163,2.94068087,149.03,149.02,66.73007828]
[1751945110698,2.94068087,149.03,149.02,63.33007828]
[1751945111464,10.47711536,149.03,148.99,63.33007828]
[1751945111661,2.91068087,149.01,149.0,3.4]
[1751945111890,2.91068087,149.01,148.99,66.73007828]
[1751945113276,0.03,149.03,148.99,66.73007828]
[1751945113478,2.94068087,149.03,148.99,66.73007828]
[1751945113873,2.91068087,149.02,148.99,66.73007828]
[1751945114383,2.91068087,149.01,148.99,66.73007828]
[1751945115170,2.91068087,149.01,149.0,3.4]
[1751945115596,2.91068087,149.01,148.99,63.33007828]
[1751945115887,2.91068087,149.0,148.99,63.33007828]
[1751945116797,4.54755573,149.0,148.99,63.33007828]
[1751945118699,4.54755573,149.0,148.99,66.73007828]
[1751945121400,30.54755573,149.0,148.96,63.39007828]
[1751945121585,4.54755573,148.97,148.96,63.39007828]
[1751945121887,4.54755573,148.98,148.96,66.79007828]
[1751945122471,4.54755573,148.97,148.96,66.79007828]
[1751945122873,4.54755573,148.97,148.96,63.39007828]
[1751945123090,4.54755573,148.97,148.96,66.79007828]
[1751945125184,7.54129471,148.99,148.96,73.50315809]
[1751945125510,4.54755573,149.01,148.96,78.05071382]
[1751945125814,7.53966001,149.0,148.96,78.05071382]
[1751945125980,4.54755573,149.0,148.96,78.05071382]
[1751945126280,4.54755573,149.01,148.96,78.05071382]
[1751945126484,7.53958614,149.0,148.96,78.05071382]
[1751945126674,4.54755573,149.01,148.96,78.05071382]
[1751945126879,7.53948964,149.0,148.96,78.05071382]
[1751945127079,0.03,149.0,148.96,78.05071382]
[1751945130004,0.03,149.0,148.97,29.90952337]
[1751945130187,0.03,149.0,148.98,3.4]
[1751945134005,0.03,149.0,148.98,66.73007828]
[1751945135904,0.03,149.0,148.98,73.44236006]
[1751945137098,0.03,149.0,148.99,23.19720459]
[1751945137312,0.03,149.0,148.99,86.52728287]
[1751945137790,0.03,149.0,148.99,93.23914272]
[1751945142930,0.03,149.0,148.99,91.60021914]
[1751945145931,0.03,149.03,149.0,63.30007828]
[1751945146113,0.03,149.03,149.01,3.4]
[1751945146732,0.03,149.03,149.01,10.11092195]
[1751945146910,0.03,149.03,149.01,13.0195541]
[1751945147101,0.03,149.03,149.02,2.90863215]
[1751945148110,0.03,149.03,149.02,66.20871043]
[1751945148506,0.03,149.03,149.02,63.30007828]
[1751945150864,2.93863215,149.03,149.02,63.30007828]
[1751945151033,2.93863215,149.03,149.02,66.70007828]
[1751945151209,0.03,149.03,149.02,66.70007828]
[1751945151537,2.93863215,149.03,149.02,66.70007828]
[1751945152238,10.47307537,149.03,149.02,66.70007828]
[1751945152634,2.93863215,149.03,149.02,66.70007828]
[1751945156834,10.47348277,149.03,149.02,66.70007828]
[1751945158824,2.93863215,149.03,149.02,66.70007828]
[1751945159434,0.03,149.03,149.02,66.70007828]
[1751945163029,2.93863215,149.03,149.02,66.70007828]
[1751945163240,10.47330096,149.03,149.02,63.30007828]
[1751945164548,10.47330096,149.03,149.01,3.4]
[1751945164753,2.90863215,149.02,149.01,3.4]
[1751945165125,10.44366371,149.02,149.01,3.4]
[1751945165450,2.90863215,149.02,149.0,3.4]
[1751945166027,0.03,149.03,149.0,3.4]
[1751945166242,2.93863215,149.03,148.98,72.92089198]
[1751945166419,2.93863215,149.03,148.99,3.4]
[1751945167142,2.93863215,149.03,148.98,72.92089198]
[1751945167324,2.93863215,149.03,148.99,3.4]
[1751945169551,2.93863215,149.03,148.99,66.70007828]
[1751945170553,2.93863215,149.03,148.99,73.41193141]
[1751945171160,0.03,149.03,148.99,73.41193141]
[1751945171331,2.93863215,149.03,148.99,76.32056356]
[1751945171734,0.03,149.03,148.99,76.32056356]
[1751945171957,0.03,149.03,149.0,2.90863215]
[1751945172131,0.03,149.03,149.01,3.4]
[1751945175441,0.03,149.03,149.01,66.70007828]
[1751945176775,2.90863215,149.02,149.01,66.70007828]
[1751945176939,10.453984,149.02,149.01,63.30007828]
[1751945177564,7.54535185,149.02,149.01,63.30007828]
[1751945177863,2.93863215,149.03,149.01,63.30007828]
[1751945178038,0.03,149.03,149.01,63.30007828]
[1751945178357,0.03,149.03,149.01,66.70007828]
[1751945184852,2.93863215,149.03,149.01,63.30007828]
[1751945185045,2.90863215,149.02,149.01,63.30007828]
[1751945185248,10.45648909,149.02,149.01,63.30007828]
[1751945189865,10.45648909,149.02,148.97,63.30007828]
[1751945190068,2.90863215,148.98,148.96,63.36007828]
[1751945190293,10.45609422,148.97,148.96,0.06]
[1751945192980,12.09767322,148.97,148.96,0.06]
[1751945193455,4.55021115,148.97,148.96,0.06]
[1751945199756,26.0,148.98,148.96,0.06]
[1751945199966,0.03,149.02,148.97,18.64964886]
[1751945200276,4.58021115,149.02,148.98,4.55021115]
[1751945200455,0.03,149.02,148.98,7.95021115]
[1751945200654,0.03,149.02,149.0,4.55021115]
[1751945201185,0.03,149.02,149.0,7.95021115]
[1751945202284,0.03,149.02,149.0,3.4]
[1751945205064,0.03,149.02,149.0,66.70007828]
[1751945206481,4.58021115,149.02,149.0,66.70007828]
[1751945207184,4.55021115,149.01,149.0,63.30007828]
[1751945208892,4.55021115,149.01,148.97,3.4]
[1751945209077,4.55021115,149.01,148.97,66.70007828]
[1751945209984,4.55021115,149.01,148.97,71.25028943]
[1751945211892,4.55021115,149.01,148.97,66.70007828]
[1751945213584,4.55021115,149.01,148.97,71.25028943]
[1751945213988,4.55021115,149.01,148.98,3.4]
[1751945219489,4.58021115,149.01,148.98,3.4]
[1751945219878,4.58021115,149.01,148.98,66.70007828]
[1751945222696,0.03,149.01,148.98,71.25028943]
[1751945228790,0.03,149.01,148.98,69.60988458]
[1751945235914,0.03,149.01,148.98,66.70007828]
[1751945236418,2.9398063,149.01,148.98,66.70007828]
[1751945236614,2.9098063,149.0,148.98,66.70007828]
[1751945236925,2.9398063,149.01,148.98,66.70007828]
[1751945237405,10.47256364,149.01,148.98,66.70007828]
[1751945238016,2.9098063,149.0,148.98,66.70007828]
[1751945238694,2.9098063,149.0,148.98,63.30007828]
[1751945238913,2.9098063,149.0,148.98,66.70007828]
[1751945243594,2.9398063,149.01,148.98,66.70007828]
[1751945243827,7.54656218,149.0,148.98,66.70007828]
[1751945244029,2.9398063,149.01,148.98,66.70007828]
[1751945244206,7.54656218,149.0,148.98,66.70007828]
[1751945244404,2.9398063,149.01,148.98,66.70007828]
[1751945244608,7.55093826,149.0,148.98,66.70007828]
[1751945244816,2.9398063,149.01,148.98,66.70007828]
[1751945245017,7.55093923,149.0,148.98,66.70007828]
[1751945245217,2.9398063,149.01,148.98,66.70007828]
[1751945245519,7.55096682,149.0,148.98,66.70007828]
[1751945245704,2.9398063,149.01,148.98,66.70007828]
[1751945245904,7.55085318,149.0,148.98,66.70007828]
[1751945246105,2.9398063,149.01,148.98,66.70007828]
[1751945246329,7.55085318,149.0,148.98,66.70007828]
[1751945246627,0.03,149.01,148.98,66.70007828]
[1751945246797,7.55098836,149.0,148.98,66.70007828]
[1751945246997,2.9398063,149.01,148.98,66.70007828]
[1751945247201,7.55082192,149.0,148.98,66.70007828]
[1751945247421,2.9398063,149.01,148.98,66.70007828]
[1751945247632,7.55103896,149.0,148.98,66.70007828]
[1751945247807,0.03,149.01,148.98,66.70007828]
[1751945248007,7.551038,149.0,148.98,66.70007828]
[1751945248205,2.9398063,149.01,148.98,66.70007828]
[1751945248516,7.5512472,149.0,148.98,66.70007828]
[1751945248701,2.9398063,149.01,148.98,66.70007828]
[1751945248916,7.55139294,149.0,148.98,66.70007828]
[1751945249129,2.9398063,149.01,148.98,66.70007828]
[1751945249338,7.55139294,149.0,148.98,66.70007828]
[1751945249632,2.9398063,149.01,148.98,66.70007828]
[1751945249809,7.55161036,149.0,148.98,66.70007828]
[1751945250015,2.9398063,149.01,148.98,66.70007828]
[1751945250320,7.55161036,149.0,148.98,66.70007828]
[1751945250510,2.9398063,149.01,148.98,66.70007828]
[1751945250699,7.55208886,149.0,148.98,66.70007828]